[Event "Titled Tuesday Blitz April 19 Early 2022"]
[White "Shimanov, Aleksandr"]
[Black "Grischuk, Alexander"]
[WhiteFideId "4198603"]
[BlackFideId "4126025"]
[WhiteElo "2636"]
[BlackElo "2762"]
[Result "1/2-1/2"]
[Round "10"]
[TimeControl "180+1"]
[Date "2022.04.19"]
[WhiteClock "0:00:16"]
[BlackClock "0:00:10"]

1. e4 {[%clk 0:03:00]}  e5 {[%clk 0:02:54]} 2. Nf3 {[%clk 0:02:56]}  Nc6 {[%clk 0:02:54]} 3. Nc3 {[%clk 0:02:56]}  Nf6 {[%clk 0:02:54]} 4. h3 {[%clk 0:02:56]}  g6 {[%clk 0:02:30]} 5. Bc4 {[%clk 0:02:46]}  Bg7 {[%clk 0:02:30]} 6. d3 {[%clk 0:02:44]}  d6 {[%clk 0:02:30]} 7. a4 {[%clk 0:02:41]}  O-O {[%clk 0:02:27]} 8. Bg5 {[%clk 0:02:37]}  h6 {[%clk 0:02:23]} 9. Be3 {[%clk 0:02:35]}  Be6 {[%clk 0:02:13]} 10. Qd2 {[%clk 0:02:28]}  Kh7 {[%clk 0:02:12]} 11. Bxe6 {[%clk 0:01:49]}  fxe6 {[%clk 0:02:13]} 12. d4 {[%clk 0:01:46]}  exd4 {[%clk 0:01:56]} 13. Nxd4 {[%clk 0:01:46]}  Nxd4 {[%clk 0:01:50]} 14. Bxd4 {[%clk 0:01:46]}  Nh5 {[%clk 0:01:17]} 15. Bxg7 {[%clk 0:01:46]}  Kxg7 {[%clk 0:01:17]} 16. O-O {[%clk 0:01:42]}  Qg5 {[%clk 0:01:02]} 17. Qxg5 {[%clk 0:01:34]}  hxg5 {[%clk 0:01:03]} 18. g3 {[%clk 0:01:24]}  Kf6 {[%clk 0:00:57]} 19. Kg2 {[%clk 0:01:23]}  Ke5 {[%clk 0:00:38]} 20. a5 {[%clk 0:01:21]}  a6 {[%clk 0:00:38]} 21. Ra4 {[%clk 0:01:19]}  Rab8 {[%clk 0:00:36]} 22. Nd1 {[%clk 0:01:13]}  Kf6 {[%clk 0:00:32]} 23. Ne3 {[%clk 0:01:12]}  Ke7 {[%clk 0:00:32]} 24. e5 {[%clk 0:01:03]}  dxe5 {[%clk 0:00:17]} 25. Ng4 {[%clk 0:01:02]}  Rfd8 {[%clk 0:00:12]} 26. Rc4 {[%clk 0:00:59]}  c6 {[%clk 0:00:11]} 27. Nxe5 {[%clk 0:00:59]}  Rd5 {[%clk 0:00:12]} 28. Re1 {[%clk 0:00:56]}  Rxa5 {[%clk 0:00:12]} 29. Rce4 {[%clk 0:00:53]}  Ng7 {[%clk 0:00:08]} 30. Nxg6+ {[%clk 0:00:47]}  Kf6 {[%clk 0:00:08]} 31. Ne5 {[%clk 0:00:48]}  Rd8 {[%clk 0:00:09]} 32. R1e2 {[%clk 0:00:39]}  Rad5 {[%clk 0:00:09]} 33. f4 {[%clk 0:00:35]}  gxf4 {[%clk 0:00:05]} 34. Rxf4+ {[%clk 0:00:36]}  Nf5 {[%clk 0:00:06]} 35. Nf3 {[%clk 0:00:34]}  Ke7 {[%clk 0:00:05]} 36. c4 {[%clk 0:00:32]}  Nd4 {[%clk 0:00:03]} 37. cxd5 {[%clk 0:00:21]}  Nxe2 {[%clk 0:00:03]} 38. Re4 {[%clk 0:00:21]}  Nc1 {[%clk 0:00:02]} 39. Rxe6+ {[%clk 0:00:22]}  Kd7 {[%clk 0:00:03]} 40. Ne5+ {[%clk 0:00:22]}  Kc7 {[%clk 0:00:03]} 41. Re7+ {[%clk 0:00:20]}  Kd6 {[%clk 0:00:03]} 42. Ng6 {[%clk 0:00:12]}  cxd5 {[%clk 0:00:02]} 43. Rxb7 {[%clk 0:00:11]}  Nd3 {[%clk 0:00:03]} 44. Rb6+ {[%clk 0:00:09]}  Kc5 {[%clk 0:00:03]} 45. Rxa6 {[%clk 0:00:09]}  d4 {[%clk 0:00:03]} 46. Ra3 {[%clk 0:00:06]}  Nxb2 {[%clk 0:00:03]} 47. Rb3 {[%clk 0:00:05]}  Nc4 {[%clk 0:00:02]} 48. Nf4 {[%clk 0:00:05]}  Ne5 {[%clk 0:00:02]} 49. Ra3 {[%clk 0:00:03]}  d3 {[%clk 0:00:02]} 50. Ra1 {[%clk 0:00:03]}  d2 {[%clk 0:00:02]} 51. Rd1 {[%clk 0:00:02]}  Nc4 {[%clk 0:00:03]} 52. Kf3 {[%clk 0:00:02]}  Nb2 {[%clk 0:00:03]} 53. Ne6+ {[%clk 0:00:02]}  Kc4 {[%clk 0:00:03]} 54. Nxd8 {[%clk 0:00:02]}  Nxd1 {[%clk 0:00:03]} 55. Ke2 {[%clk 0:00:03]}  Nf2 {[%clk 0:00:03]} 56. Kxd2 {[%clk 0:00:02]}  Nxh3 {[%clk 0:00:03]} 57. Ke3 {[%clk 0:00:03]}  Kd5 {[%clk 0:00:03]} 58. Nf7 {[%clk 0:00:04]}  Ke6 {[%clk 0:00:04]} 59. Nh6 {[%clk 0:00:04]}  Kf6 {[%clk 0:00:03]} 60. Ng4+ {[%clk 0:00:04]}  Kg6 {[%clk 0:00:03]} 61. Nf2 {[%clk 0:00:05]}  Nxf2 {[%clk 0:00:03]} 62. Kxf2 {[%clk 0:00:06]}  Kg5 {[%clk 0:00:04]} 63. Kf3 {[%clk 0:00:06]}  Kf5 {[%clk 0:00:04]} 64. g4+ {[%clk 0:00:07]}  Kg5 {[%clk 0:00:05]} 65. Kg3 {[%clk 0:00:08]}  Kg6 {[%clk 0:00:06]} 66. Kf4 {[%clk 0:00:09]}  Kf6 {[%clk 0:00:06]} 67. g5+ {[%clk 0:00:10]}  Kg6 {[%clk 0:00:07]} 68. Kg4 {[%clk 0:00:11]}  Kg7 {[%clk 0:00:07]} 69. Kf5 {[%clk 0:00:12]}  Kf7 {[%clk 0:00:08]} 70. g6+ {[%clk 0:00:12]}  Kg7 {[%clk 0:00:08]} 71. Kg5 {[%clk 0:00:13]}  Kg8 {[%clk 0:00:09]} 72. Kf6 {[%clk 0:00:14]}  Kf8 {[%clk 0:00:09]} 73. g7+ {[%clk 0:00:15]}  Kg8 {[%clk 0:00:10]} 74. Kg6 {[%clk 0:00:16]} 1/2-1/2


[Site "https://www.chess.com"]

[Event "Titled Tuesday Blitz April 19 Early 2022"]
[White "Smietanska, Wiktoria"]
[Black "Quirke, Jeffrey"]
[WhiteFideId "21869359"]
[BlackFideId "2013029"]
[WhiteElo "1893"]
[BlackElo "2173"]
[Result "1-0"]
[Round "10"]
[TimeControl "180+1"]
[Date "2022.04.19"]
[WhiteClock "0:00:03"]
[BlackClock "0:00:01"]

1. c4 {[%clk 0:03:00]}  e6 {[%clk 0:02:59]} 2. Nc3 {[%clk 0:02:58]}  d5 {[%clk 0:02:59]} 3. cxd5 {[%clk 0:02:58]}  exd5 {[%clk 0:02:59]} 4. d4 {[%clk 0:02:59]}  c6 {[%clk 0:02:59]} 5. Nf3 {[%clk 0:02:58]}  Bf5 {[%clk 0:02:58]} 6. Bf4 {[%clk 0:02:56]}  Bd6 {[%clk 0:02:56]} 7. Bxd6 {[%clk 0:02:53]}  Qxd6 {[%clk 0:02:56]} 8. e3 {[%clk 0:02:54]}  Nd7 {[%clk 0:02:51]} 9. Bd3 {[%clk 0:02:54]}  Bxd3 {[%clk 0:02:50]} 10. Qxd3 {[%clk 0:02:55]}  Ngf6 {[%clk 0:02:50]} 11. O-O {[%clk 0:02:56]}  O-O {[%clk 0:02:41]} 12. Rab1 {[%clk 0:02:55]}  Rfe8 {[%clk 0:02:35]} 13. b4 {[%clk 0:02:55]}  a6 {[%clk 0:02:34]} 14. a4 {[%clk 0:02:55]}  Nb6 {[%clk 0:02:32]} 15. b5 {[%clk 0:02:52]}  cxb5 {[%clk 0:02:32]} 16. axb5 {[%clk 0:02:53]}  a5 {[%clk 0:02:32]} 17. Rfc1 {[%clk 0:02:52]}  a4 {[%clk 0:02:28]} 18. Ra1 {[%clk 0:02:49]}  a3 {[%clk 0:02:19]} 19. Ra2 {[%clk 0:02:46]}  Ra5 {[%clk 0:02:09]} 20. Ne2 {[%clk 0:02:37]}  Ne4 {[%clk 0:01:43]} 21. Nd2 {[%clk 0:02:32]}  Nxd2 {[%clk 0:01:37]} 22. Qxd2 {[%clk 0:02:33]}  Rea8 {[%clk 0:01:35]} 23. Qd3 {[%clk 0:02:28]}  g6 {[%clk 0:01:35]} 24. Nf4 {[%clk 0:02:27]}  Qb4 {[%clk 0:01:16]} 25. Rc5 {[%clk 0:01:58]}  Qb2 {[%clk 0:01:07]} 26. Rc2 {[%clk 0:01:36]}  Qb1+ {[%clk 0:01:05]} 27. Qf1 {[%clk 0:01:36]}  Qb3 {[%clk 0:00:47]} 28. Qc1 {[%clk 0:01:12]}  Rxb5 {[%clk 0:00:44]} 29. g3 {[%clk 0:01:12]}  Qb1 {[%clk 0:00:43]} 30. Kg2 {[%clk 0:01:11]}  Qxc1 {[%clk 0:00:42]} 31. Rxc1 {[%clk 0:01:12]}  Rb2 {[%clk 0:00:30]} 32. Rca1 {[%clk 0:01:11]}  Rxa2 {[%clk 0:00:29]} 33. Rxa2 {[%clk 0:01:12]}  Kf8 {[%clk 0:00:29]} 34. Kf1 {[%clk 0:01:12]}  Ke7 {[%clk 0:00:29]} 35. Ke2 {[%clk 0:01:12]}  Kd6 {[%clk 0:00:29]} 36. Kd3 {[%clk 0:01:13]}  Nc4 {[%clk 0:00:29]} 37. Kc3 {[%clk 0:01:13]}  b5 {[%clk 0:00:28]} 38. Kb4 {[%clk 0:01:13]}  Kc6 {[%clk 0:00:28]} 39. Nd3 {[%clk 0:01:12]}  Ra4+ {[%clk 0:00:23]} 40. Kc3 {[%clk 0:01:08]}  f6 {[%clk 0:00:16]} 41. Nb4+ {[%clk 0:01:06]}  Kd6 {[%clk 0:00:16]} 42. Nc2 {[%clk 0:01:02]}  h5 {[%clk 0:00:13]} 43. Nb4 {[%clk 0:00:51]}  Ra8 {[%clk 0:00:12]} 44. h4 {[%clk 0:00:51]}  g5 {[%clk 0:00:12]} 45. hxg5 {[%clk 0:00:49]}  fxg5 {[%clk 0:00:12]} 46. Nd3 {[%clk 0:00:47]}  h4 {[%clk 0:00:12]} 47. gxh4 {[%clk 0:00:46]}  gxh4 {[%clk 0:00:13]} 48. Kb4 {[%clk 0:00:44]}  Rh8 {[%clk 0:00:11]} 49. Ra1 {[%clk 0:00:40]}  h3 {[%clk 0:00:11]} 50. Rh1 {[%clk 0:00:39]}  h2 {[%clk 0:00:11]} 51. Kb3 {[%clk 0:00:38]}  Rh4 {[%clk 0:00:07]} 52. Ne1 {[%clk 0:00:35]}  b4 {[%clk 0:00:04]} 53. Nf3 {[%clk 0:00:35]}  Rh3 {[%clk 0:00:03]} 54. Ng5 {[%clk 0:00:28]}  Nd2+ {[%clk 0:00:03]} 55. Kxb4 {[%clk 0:00:20]}  Rh5 {[%clk 0:00:01]} 56. Kxa3 {[%clk 0:00:11]}  Rxg5 {[%clk 0:00:02]} 57. Rxh2 {[%clk 0:00:11]}  Ne4 {[%clk 0:00:02]} 58. Rh6+ {[%clk 0:00:11]}  Kd7 {[%clk 0:00:02]} 59. f4 {[%clk 0:00:11]}  Rg3 {[%clk 0:00:01]} 60. Rh7+ {[%clk 0:00:10]}  Ke6 {[%clk 0:00:01]} 61. Rh6+ {[%clk 0:00:10]}  Nf6 {[%clk 0:00:02]} 62. Kb4 {[%clk 0:00:10]}  Rxe3 {[%clk 0:00:02]} 63. Kc5 {[%clk 0:00:10]}  Rc3+ {[%clk 0:00:01]} 64. Kb4 {[%clk 0:00:10]}  Rf3 {[%clk 0:00:02]} 65. Kc5 {[%clk 0:00:10]}  Rxf4 {[%clk 0:00:02]} 66. Rh8 {[%clk 0:00:08]}  Rf3 {[%clk 0:00:02]} 67. Ra8 {[%clk 0:00:06]}  Rc3+ {[%clk 0:00:01]} 68. Kb5 {[%clk 0:00:06]}  Rc4 {[%clk 0:00:02]} 69. Ra6+ {[%clk 0:00:05]}  Kf5 {[%clk 0:00:02]} 70. Rd6 {[%clk 0:00:03]}  Rxd4 {[%clk 0:00:02]} 71. Kc5 {[%clk 0:00:04]}  Rd1 {[%clk 0:00:01]} 72. Rd8 {[%clk 0:00:03]}  Rc1+ {[%clk 0:00:01]} 73. Kd4 {[%clk 0:00:03]} 1-0


[Site "https://www.chess.com"]

[Event "Titled Tuesday Blitz April 19 Early 2022"]
[White "Sovetbekova, Nurai"]
[Black "Hernandez Bermudez, Ulises Eduardo"]
[WhiteFideId "13801910"]
[BlackFideId "3902510"]
[WhiteElo "1538"]
[BlackElo "2056"]
[Result "0-1"]
[Round "10"]
[TimeControl "180+1"]
[Date "2022.04.19"]
[WhiteClock "0:00:01"]
[BlackClock "0:00:19"]

1. d4 {[%clk 0:03:00]}  Nf6 {[%clk 0:02:59]} 2. c4 {[%clk 0:02:59]}  g6 {[%clk 0:02:59]} 3. g3 {[%clk 0:02:58]}  Bg7 {[%clk 0:02:59]} 4. Bg2 {[%clk 0:02:58]}  O-O {[%clk 0:02:58]} 5. Nf3 {[%clk 0:02:58]}  d6 {[%clk 0:02:59]} 6. O-O {[%clk 0:02:59]}  Nc6 {[%clk 0:02:57]} 7. Nc3 {[%clk 0:02:58]}  e5 {[%clk 0:02:57]} 8. dxe5 {[%clk 0:02:58]}  Nxe5 {[%clk 0:02:56]} 9. Nxe5 {[%clk 0:02:48]}  dxe5 {[%clk 0:02:57]} 10. Qxd8 {[%clk 0:02:47]}  Rxd8 {[%clk 0:02:58]} 11. Bg5 {[%clk 0:02:47]}  Rd4 {[%clk 0:02:58]} 12. b3 {[%clk 0:02:27]}  h6 {[%clk 0:02:52]} 13. Bxf6 {[%clk 0:02:13]}  Bxf6 {[%clk 0:02:51]} 14. Nd5 {[%clk 0:02:12]}  Bd8 {[%clk 0:02:50]} 15. e3 {[%clk 0:02:06]}  Rd2 {[%clk 0:02:48]} 16. Rfd1 {[%clk 0:02:01]}  Rxd1+ {[%clk 0:02:44]} 17. Rxd1 {[%clk 0:02:02]}  c6 {[%clk 0:02:44]} 18. Nc3 {[%clk 0:01:47]}  Be6 {[%clk 0:02:44]} 19. Ne4 {[%clk 0:01:44]}  Be7 {[%clk 0:02:44]} 20. Kf1 {[%clk 0:01:40]}  a5 {[%clk 0:02:37]} 21. Ke2 {[%clk 0:01:32]}  a4 {[%clk 0:02:35]} 22. Nd6 {[%clk 0:01:25]}  axb3 {[%clk 0:02:35]} 23. axb3 {[%clk 0:01:21]}  Ra3 {[%clk 0:02:35]} 24. Nxb7 {[%clk 0:01:08]}  Rxb3 {[%clk 0:02:32]} 25. Na5 {[%clk 0:01:01]}  Rb2+ {[%clk 0:02:19]} 26. Kf1 {[%clk 0:00:57]}  c5 {[%clk 0:02:01]} 27. Bd5 {[%clk 0:00:44]}  Bh3+ {[%clk 0:02:01]} 28. Ke1 {[%clk 0:00:40]}  Kg7 {[%clk 0:01:55]} 29. Nc6 {[%clk 0:00:36]}  Bf6 {[%clk 0:01:43]} 30. Ra1 {[%clk 0:00:27]}  e4 {[%clk 0:01:28]} 31. Rc1 {[%clk 0:00:16]}  Bf5 {[%clk 0:01:16]} 32. Na7 {[%clk 0:00:14]}  Bd8 {[%clk 0:01:02]} 33. Nb5 {[%clk 0:00:11]}  Ba5+ {[%clk 0:01:02]} 34. Kf1 {[%clk 0:00:10]}  Bb4 {[%clk 0:00:58]} 35. Nd6 {[%clk 0:00:08]}  Bh3+ {[%clk 0:00:57]} 36. Kg1 {[%clk 0:00:07]}  f5 {[%clk 0:00:57]} 37. Ne8+ {[%clk 0:00:07]}  Kh7 {[%clk 0:00:54]} 38. Nf6+ {[%clk 0:00:06]}  Kg7 {[%clk 0:00:54]} 39. Nd7 {[%clk 0:00:06]}  Bg4 {[%clk 0:00:44]} 40. Ne5 {[%clk 0:00:06]}  Bh3 {[%clk 0:00:43]} 41. Nc6 {[%clk 0:00:05]}  Bc3 {[%clk 0:00:39]} 42. Nd8 {[%clk 0:00:03]}  Bf6 {[%clk 0:00:38]} 43. Ne6+ {[%clk 0:00:03]}  Kh7 {[%clk 0:00:37]} 44. Nxc5 {[%clk 0:00:04]}  g5 {[%clk 0:00:35]} 45. Nd7 {[%clk 0:00:04]}  Bc3 {[%clk 0:00:34]} 46. c5 {[%clk 0:00:03]}  Ba5 {[%clk 0:00:34]} 47. c6 {[%clk 0:00:03]}  Kg6 {[%clk 0:00:32]} 48. Nf8+ {[%clk 0:00:04]}  Kh5 {[%clk 0:00:31]} 49. Ne6 {[%clk 0:00:04]}  Kg4 {[%clk 0:00:28]} 50. c7 {[%clk 0:00:04]}  Bxc7 {[%clk 0:00:27]} 51. Nxc7 {[%clk 0:00:04]}  Kf3 {[%clk 0:00:27]} 52. Bc4 {[%clk 0:00:02]}  Rxf2 {[%clk 0:00:27]} 53. Nd5 {[%clk 0:00:02]}  Rg2+ {[%clk 0:00:26]} 54. Kh1 {[%clk 0:00:02]}  Rf2 {[%clk 0:00:24]} 55. Nc7 {[%clk 0:00:01]}  Bg2+ {[%clk 0:00:19]} 0-1


[Site "https://www.chess.com"]

[Event "Titled Tuesday Blitz April 19 Early 2022"]
[White "Svane, Frederik"]
[Black "Janaszak, Dawid"]
[WhiteFideId "12923044"]
[BlackFideId "1119206"]
[WhiteElo "2459"]
[BlackElo "2199"]
[Result "1-0"]
[Round "10"]
[TimeControl "180+1"]
[Date "2022.04.19"]
[WhiteClock "0:00:38"]
[BlackClock "0:00:08"]

1. e4 {[%clk 0:03:00]}  c5 {[%clk 0:03:00]} 2. Nf3 {[%clk 0:03:01]}  Nc6 {[%clk 0:03:00]} 3. Bb5 {[%clk 0:03:01]}  g6 {[%clk 0:03:00]} 4. O-O {[%clk 0:03:01]}  Bg7 {[%clk 0:03:01]} 5. d3 {[%clk 0:03:02]}  Nf6 {[%clk 0:03:00]} 6. Bxc6 {[%clk 0:02:49]}  bxc6 {[%clk 0:03:01]} 7. e5 {[%clk 0:02:47]}  Ng4 {[%clk 0:03:01]} 8. Qe1 {[%clk 0:02:45]}  f6 {[%clk 0:02:53]} 9. Bf4 {[%clk 0:02:30]}  O-O {[%clk 0:02:42]} 10. exf6 {[%clk 0:02:29]}  Nxf6 {[%clk 0:02:40]} 11. Nc3 {[%clk 0:02:29]}  d6 {[%clk 0:02:39]} 12. Rb1 {[%clk 0:02:21]}  e5 {[%clk 0:02:38]} 13. Bg5 {[%clk 0:02:21]}  h6 {[%clk 0:02:37]} 14. Bxf6 {[%clk 0:02:19]}  Qxf6 {[%clk 0:02:30]} 15. Ne4 {[%clk 0:02:19]}  Qe7 {[%clk 0:02:28]} 16. b4 {[%clk 0:02:10]}  cxb4 {[%clk 0:02:10]} 17. Qxb4 {[%clk 0:02:09]}  c5 {[%clk 0:02:10]} 18. Qb3+ {[%clk 0:02:04]}  Be6 {[%clk 0:01:55]} 19. Qb7 {[%clk 0:02:03]}  Qxb7 {[%clk 0:01:34]} 20. Rxb7 {[%clk 0:02:04]}  Bd5 {[%clk 0:01:34]} 21. Rd7 {[%clk 0:01:57]}  Rad8 {[%clk 0:01:19]} 22. Rxd6 {[%clk 0:01:51]}  Rxd6 {[%clk 0:01:11]} 23. Nxd6 {[%clk 0:01:52]}  Rb8 {[%clk 0:00:56]} 24. c4 {[%clk 0:01:42]}  Bxf3 {[%clk 0:00:48]} 25. gxf3 {[%clk 0:01:43]}  Rb2 {[%clk 0:00:48]} 26. Ne4 {[%clk 0:01:35]}  Rxa2 {[%clk 0:00:44]} 27. Nxc5 {[%clk 0:01:33]}  a5 {[%clk 0:00:44]} 28. Rb1 {[%clk 0:01:29]}  a4 {[%clk 0:00:42]} 29. Rb8+ {[%clk 0:01:29]}  Kf7 {[%clk 0:00:41]} 30. Rb7+ {[%clk 0:01:29]}  Kg8 {[%clk 0:00:41]} 31. Ra7 {[%clk 0:01:21]}  a3 {[%clk 0:00:41]} 32. Ne4 {[%clk 0:01:18]}  h5 {[%clk 0:00:24]} 33. Kg2 {[%clk 0:01:15]}  Bh6 {[%clk 0:00:23]} 34. Nc3 {[%clk 0:00:54]}  Ra1 {[%clk 0:00:14]} 35. c5 {[%clk 0:00:55]}  Bd2 {[%clk 0:00:10]} 36. c6 {[%clk 0:00:44]}  Rc1 {[%clk 0:00:10]} 37. Rxa3 {[%clk 0:00:36]}  Bxc3 {[%clk 0:00:09]} 38. Ra8+ {[%clk 0:00:37]}  Kf7 {[%clk 0:00:09]} 39. c7 {[%clk 0:00:37]}  Bd4 {[%clk 0:00:08]} 40. c8=Q {[%clk 0:00:38]} 1-0


[Site "https://www.chess.com"]

[Event "Titled Tuesday Blitz April 19 Early 2022"]
[White "Svane, Rasmus"]
[Black "Nakamura, Hikaru"]
[WhiteFideId "4657101"]
[BlackFideId "2016192"]
[WhiteElo "2645"]
[BlackElo "2850"]
[Result "1/2-1/2"]
[Round "10"]
[TimeControl "180+1"]
[Date "2022.04.19"]
[WhiteClock "0:00:10"]
[BlackClock "0:00:14"]

1. Nf3 {[%clk 0:03:00]}  d5 {[%clk 0:02:58]} 2. g3 {[%clk 0:02:59]}  Nf6 {[%clk 0:02:58]} 3. Bg2 {[%clk 0:02:59]}  e6 {[%clk 0:02:58]} 4. O-O {[%clk 0:02:59]}  Be7 {[%clk 0:02:58]} 5. c4 {[%clk 0:02:58]}  O-O {[%clk 0:02:58]} 6. b3 {[%clk 0:02:58]}  c5 {[%clk 0:02:56]} 7. cxd5 {[%clk 0:02:57]}  Nxd5 {[%clk 0:02:56]} 8. Nc3 {[%clk 0:02:57]}  Bf6 {[%clk 0:02:49]} 9. Bb2 {[%clk 0:02:55]}  b6 {[%clk 0:02:45]} 10. d4 {[%clk 0:02:33]}  Bb7 {[%clk 0:02:36]} 11. Ne4 {[%clk 0:02:30]}  Nd7 {[%clk 0:02:27]} 12. Nxf6+ {[%clk 0:02:24]}  N5xf6 {[%clk 0:02:26]} 13. Rc1 {[%clk 0:02:24]}  Qe7 {[%clk 0:02:23]} 14. Qd2 {[%clk 0:02:19]}  Rfd8 {[%clk 0:02:23]} 15. Rfd1 {[%clk 0:02:19]}  a5 {[%clk 0:02:12]} 16. dxc5 {[%clk 0:01:48]}  Nxc5 {[%clk 0:02:13]} 17. Qe3 {[%clk 0:01:42]}  Bd5 {[%clk 0:01:54]} 18. Ne5 {[%clk 0:01:34]}  Qb7 {[%clk 0:01:51]} 19. Bxd5 {[%clk 0:01:34]}  Nxd5 {[%clk 0:01:50]} 20. Qf3 {[%clk 0:01:34]}  f6 {[%clk 0:01:26]} 21. Nc4 {[%clk 0:01:13]}  a4 {[%clk 0:01:21]} 22. Bd4 {[%clk 0:01:12]}  axb3 {[%clk 0:01:12]} 23. axb3 {[%clk 0:01:12]}  Rac8 {[%clk 0:01:08]} 24. h4 {[%clk 0:01:10]}  Qe7 {[%clk 0:00:58]} 25. h5 {[%clk 0:01:05]}  b5 {[%clk 0:00:49]} 26. Na5 {[%clk 0:01:01]}  Qa7 {[%clk 0:00:43]} 27. b4 {[%clk 0:00:45]}  Nxb4 {[%clk 0:00:42]} 28. Nb3 {[%clk 0:00:33]}  Nba6 {[%clk 0:00:40]} 29. Nxc5 {[%clk 0:00:30]}  Nxc5 {[%clk 0:00:41]} 30. Qe3 {[%clk 0:00:28]}  Qa4 {[%clk 0:00:38]} 31. Ra1 {[%clk 0:00:21]}  Qb3 {[%clk 0:00:38]} 32. Rdb1 {[%clk 0:00:17]}  Qxe3 {[%clk 0:00:23]} 33. Bxe3 {[%clk 0:00:18]}  Ne4 {[%clk 0:00:23]} 34. Rxb5 {[%clk 0:00:19]}  Rd7 {[%clk 0:00:21]} 35. Rb2 {[%clk 0:00:15]}  h6 {[%clk 0:00:19]} 36. Kg2 {[%clk 0:00:15]}  Kf7 {[%clk 0:00:18]} 37. f3 {[%clk 0:00:14]}  Nc3 {[%clk 0:00:16]} 38. Rc2 {[%clk 0:00:11]}  Rdc7 {[%clk 0:00:16]} 39. Rac1 {[%clk 0:00:11]}  Nd5 {[%clk 0:00:14]} 40. Rxc7+ {[%clk 0:00:11]}  Rxc7 {[%clk 0:00:15]} 41. Rxc7+ {[%clk 0:00:11]}  Nxc7 {[%clk 0:00:16]} 42. g4 {[%clk 0:00:11]}  e5 {[%clk 0:00:15]} 43. Bc5 {[%clk 0:00:10]}  Ne6 {[%clk 0:00:14]} 44. Bb4 {[%clk 0:00:10]}  Nf4+ {[%clk 0:00:15]} 45. Kf2 {[%clk 0:00:10]}  g6 {[%clk 0:00:15]} 46. hxg6+ {[%clk 0:00:09]}  Kxg6 {[%clk 0:00:16]} 47. Bd2 {[%clk 0:00:10]}  Ne6 {[%clk 0:00:16]} 48. e4 {[%clk 0:00:09]}  h5 {[%clk 0:00:13]} 49. gxh5+ {[%clk 0:00:10]}  Kxh5 {[%clk 0:00:14]} 50. Kg3 {[%clk 0:00:10]}  Nc5 {[%clk 0:00:14]} 51. Be3 {[%clk 0:00:10]}  Na4 {[%clk 0:00:13]} 52. f4 {[%clk 0:00:10]}  Nc3 {[%clk 0:00:13]} 53. fxe5 {[%clk 0:00:11]}  Nxe4+ {[%clk 0:00:13]} 54. Kf4 {[%clk 0:00:10]}  fxe5+ {[%clk 0:00:14]} 55. Kxe5 {[%clk 0:00:10]} 1/2-1/2


[Site "https://www.chess.com"]